fUST/lending_fUST_20250127
["ID","MTS","AMOUNT","RATE_DAILY","PERIOD"]
[350526611,1737946247000,-500.0,0.00021999,2]
[350526612,1737946247009,-500.0,0.00021999,2]
[350526613,1737946247019,-500.0,0.00021999,2]
[350526614,1737946247028,-500.0,0.00021999,2]
[350526615,1737946247037,-510.71989205,0.00021999,2]
[350526616,1737946247047,-500.0,0.00021999,2]
[350526617,1737946247056,-503.72779,0.00021999,2]
[350526618,1737946247066,-509.82929129,0.00021999,2]
[350526619,1737946247075,-500.0,0.00021999,2]
[350526620,1737946247085,-500.0,0.00021999,2]
[350526621,1737946247095,-500.0,0.00021999,2]
[350526622,1737946247106,-512.16986127,0.00021999,2]
[350526623,1737946247115,-500.0,0.00021999,2]
[350526624,1737946247124,-514.68917133,0.00021999,2]
[350526625,1737946247134,-286.09184096,0.00021999,2]
[350526626,1737946247143,-500.0,0.00021999,2]
[350526627,1737946247152,-502.91986499,0.00021999,2]
[350526628,1737946247161,-505.52519371,0.00021999,2]
[350526629,1737946247172,-500.0,0.00021999,2]
[350526630,1737946247182,-500.0,0.00021999,2]
[350526631,1737946247280,-500.0,0.00021999,2]
[350526632,1737946247290,-1000.0,0.00021999,2]
[350526633,1737946247300,-500.0,0.00021999,2]
[350526634,1737946247309,-504.38329905,0.00021999,2]
[350526635,1737946247319,-508.38980565,0.00021999,2]
[350526636,1737946247328,-500.0,0.00021999,2]
[350526637,1737946247337,-500.0,0.00021999,2]
[350526638,1737946247346,-500.0,0.00021999,2]
[350526639,1737946247355,-500.0,0.00021999,2]
[350526640,1737946247365,-500.0,0.00021999,2]
[350526641,1737946247374,-505.54201152,0.00021999,2]
[350526642,1737946247383,-536.07536648,0.00021999,2]
[350526643,1737946247393,-506.53872522,0.00021999,2]
[350526644,1737946247402,-507.46963545,0.00021999,2]
[350526645,1737946247412,-500.0,0.00021999,2]
[350526646,1737946247422,-504.21661088,0.00021999,2]
[350526647,1737946247431,-504.04567418,0.00021999,2]
[350526648,1737946247440,-503.46098935,0.00021999,2]
[350526649,1737946247449,-502.4423456,0.00021999,2]
[350526650,1737946247458,-500.0,0.00021999,2]
[350526651,1737946247468,-500.0,0.00021999,2]
[350526652,1737946247478,-506.97454325,0.00021999,2]
[350526653,1737946247487,-500.0,0.00021999,2]
[350526654,1737946247496,-500.0,0.00021999,2]
[350526655,1737946247506,-500.0,0.00021999,2]
[350526656,1737946247516,-504.69428113,0.00021999,2]
[350526657,1737946247526,-249.24565799,0.00021999,2]
[350526658,1737946247536,-286.96673231,0.00021999,2]
[350526659,1737946247545,-298.96340491,0.00021999,2]
[350526660,1737946247554,-151.0,0.00021999,7]
[350526661,1737946247564,-1267.658286,0.00021999,7]
[350526662,1737946247574,-1267.658286,0.00021999,7]
[350526663,1737946247583,-500.0,0.00021999,2]
[350526664,1737946247593,-501.63587498,0.00021999,2]
[350526665,1737946247602,-501.34688544,0.00021999,2]
[350526666,1737946247611,-501.55642339,0.00021999,2]
[350526667,1737946247621,-1201.106047,0.00021999,7]
[350526668,1737946247630,-502.49303979,0.00021999,2]
[350526669,1737946247639,-1201.106047,0.00021999,7]
[350526670,1737946247648,-643.185665,0.00021999,7]
[350526671,1737946247662,-643.185665,0.00021999,7]
[350526672,1737946247672,-151.0,0.00021999,7]
[350526673,1737946247682,-1028.293023,0.00021999,7]
[350526674,1737946247692,-1028.293023,0.00021999,7]
[350526675,1737946247702,-336.865126,0.00021999,7]
[350526676,1737946247712,-336.865126,0.00021999,7]
[350526677,1737946247721,-169.156719,0.00021999,7]
[350526678,1737946247731,-169.156719,0.00021999,7]
[350526679,1737946247740,-897.026712,0.00021999,7]
[350526680,1737946247750,-897.026712,0.00021999,7]
[350526681,1737946247759,-601.522044,0.00021999,7]
[350526682,1737946247769,-601.522044,0.00021999,7]
[350526683,1737946247778,-151.0,0.00021999,7]
[350526684,1737946247788,-151.0,0.00021999,7]
[350526685,1737946247797,-216.368826,0.00021999,7]
[350526686,1737946247806,-151.0,0.00021999,7]
[350526687,1737946247815,-584.323886,0.00021999,7]
[350526688,1737946247824,-584.323886,0.00021999,7]
[350526689,1737946247833,-151.0,0.00021999,7]
[350526690,1737946247842,-151.0,0.00021999,7]
[350526691,1737946247851,-151.0,0.00021999,7]
[350526692,1737946247860,-151.0,0.00021999,7]
[350526693,1737946247870,-736.236547,0.00021999,7]
[350526694,1737946247879,-736.236547,0.00021999,7]
[350526695,1737946247888,-151.0,0.00021999,7]
[350526696,1737946247899,-160.0,0.00021999,7]
[350526697,1737946247908,-208.25279113,0.00022018,3]
[350526698,1737946247918,-300.0,0.000221,10]
[350526699,1737946247928,-353.04374654,0.00022135,2]
[350526700,1737946247937,-261.12326722,0.00022136,2]
[350526701,1737946247947,-500.0,0.00022136,2]
[350526702,1737946247957,-500.0,0.00022136,2]
[350526703,1737946247967,-546.46115464,0.00022136,2]
[350526704,1737946247976,-159.94086897,0.00022136,2]
[350526705,1737946247986,-500.0,0.00022136,2]
[350526706,1737946247995,-500.0,0.00022136,2]
[350526707,1737946248005,-500.0,0.00022136,2]
[350526708,1737946248014,-500.0,0.00022136,2]
[350526709,1737946248024,-500.0,0.00022136,2]
[350526710,1737946248033,-500.0,0.00022136,2]
[350526711,1737946248042,-505.78835023,0.00022136,2]
[350526712,1737946248052,-500.0,0.00022136,2]
[350526713,1737946248061,-576.33219161,0.00022136,2]
[350526714,1737946248071,-500.0,0.00022136,2]
[350526715,1737946248081,-528.92810917,0.00022136,2]
[350526716,1737946248092,-511.70429442,0.00022136,2]
[350526717,1737946248102,-584.74,0.00022136,2]
[350526718,1737946248111,-501.47218608,0.00022136,2]
[350526719,1737946248121,-500.0,0.00022136,2]
[350526720,1737946248130,-501.47253672,0.00022136,2]
[350526721,1737946248139,-507.46924334,0.00022136,2]
[350526722,1737946248149,-506.29611266,0.00022136,2]
[350526723,1737946248159,-371.68571292,0.00022136,2]
[350526724,1737946248170,-505.08902571,0.00022136,2]
[350526725,1737946248185,-502.86084605,0.00022136,2]
[350526726,1737946248195,-501.10556935,0.00022136,2]
[350526727,1737946248207,-502.34022885,0.00022136,2]
[350526728,1737946248216,-502.62645453,0.00022136,2]
[350526729,1737946248226,-501.87569776,0.00022136,2]
[350526730,1737946248236,-644.4504408,0.00022136,2]
[350526731,1737946248245,-500.89097146,0.00022136,2]
[350526732,1737946248255,-501.41323162,0.00022136,2]
[350526733,1737946248264,-157.54158492,0.00022136,2]
[350526734,1737946248273,-504.56636609,0.00022136,2]
[350526735,1737946248284,-500.0,0.00022136,2]
[350526736,1737946248293,-500.0,0.00022136,2]
[350526737,1737946248303,-500.0,0.00022136,2]
[350526738,1737946248312,-500.0,0.00022136,2]
[350526739,1737946248322,-500.91954449,0.00022136,2]
[350526740,1737946248332,-500.0,0.00022136,2]
[350526741,1737946248342,-502.72479638,0.00022136,2]
[350526742,1737946248353,-244.87811421,0.00022136,2]
[350526743,1737946248362,-508.91484669,0.00022136,2]
[350526744,1737946248373,-505.46518994,0.00022136,2]
[350526745,1737946248383,-598.69,0.00022136,2]
[350526746,1737946248393,-1013.87169319,0.00022136,2]
[350526747,1737946248403,-508.09259671,0.00022136,2]
[350526748,1737946248414,-512.49249996,0.00022136,2]
[350526749,1737946248427,-500.0,0.00022136,2]
[350526750,1737946248438,-505.55842029,0.00022136,2]
[350526751,1737946248450,-509.05802149,0.00022136,2]
[350526752,1737946248459,-603.06851229,0.00022136,2]
[350526753,1737946248469,-452.62768758,0.00022136,2]
[350526754,1737946248479,-747.129425,0.00022136,7]
[350526755,1737946248489,-747.129425,0.00022136,7]
[350526756,1737946248498,-246.06855841,0.00022136,2]
[350526757,1737946248508,-505.27856966,0.00022136,2]
[350526758,1737946248517,-151.0,0.00022136,7]
[350526759,1737946248527,-511.49167661,0.00022136,2]
[350526760,1737946248537,-518.95925627,0.00022136,2]
[350526761,1737946248546,-151.0,0.00022136,7]
[350526762,1737946248556,-500.0,0.00022136,2]
[350526763,1737946248565,-151.0,0.00022136,7]
[350526764,1737946248574,-1267.658286,0.00022136,7]
[350526765,1737946248585,-1267.658286,0.00022136,7]
[350526766,1737946248595,-504.5757575,0.00022136,2]
[350526767,1737946248605,-268.894567,0.00022136,7]
[350526768,1737946248615,-1201.106047,0.00022136,7]
[350526769,1737946248625,-268.894567,0.00022136,7]
[350526770,1737946248634,-1201.106047,0.00022136,7]
[350526771,1737946248644,-643.185665,0.00022136,7]
[350526772,1737946248654,-643.185665,0.00022136,7]
[350526773,1737946248667,-151.0,0.00022136,7]
[350526774,1737946248680,-1028.293023,0.00022136,7]
[350526775,1737946248691,-1028.293023,0.00022136,7]
[350526776,1737946248700,-897.026712,0.00022136,7]
[350526777,1737946248711,-897.026712,0.00022136,7]
[350526778,1737946248722,-601.522044,0.00022136,7]
[350526779,1737946248732,-601.522044,0.00022136,7]
[350526780,1737946248743,-151.0,0.00022136,7]
[350526781,1737946248753,-151.0,0.00022136,7]
[350526782,1737946248763,-151.0,0.00022136,7]
[350526783,1737946248773,-584.323886,0.00022136,7]
[350526784,1737946248784,-584.323886,0.00022136,7]
[350526785,1737946248794,-151.0,0.00022136,7]
[350526786,1737946248804,-151.0,0.00022136,7]
[350526787,1737946248814,-151.0,0.00022136,7]
[350526788,1737946248825,-151.0,0.00022136,7]
[350526789,1737946248835,-736.236547,0.00022136,7]
[350526790,1737946248846,-736.236547,0.00022136,7]
[350526791,1737946248856,-152.873917,0.00022136,7]
[350526792,1737946248866,-208.25279113,0.00022194,3]
[350526793,1737946248876,-500.0,0.00022273,2]
[350526794,1737946248886,-500.0,0.00022273,2]
[350526795,1737946248897,-500.0,0.00022273,2]
[350526796,1737946248906,-500.0,0.00022273,2]
[350526797,1737946248916,-500.0,0.00022273,2]
[350526798,1737946248932,-500.0,0.00022273,2]
[350526799,1737946248942,-180.35575427,0.00022273,2]
[350526800,1737946248952,-512.28618489,0.00022273,2]
[350526801,1737946248962,-513.69403509,0.00022273,2]
[350526802,1737946248972,-520.12363365,0.00022273,2]
[350526803,1737946248983,-296.01963192,0.00022273,2]
[350526804,1737946248994,-500.0,0.00022273,2]
[350526805,1737946249005,-500.0,0.00022273,2]
[350526806,1737946249015,-151.0,0.00022273,7]
[350526807,1737946249024,-160.0,0.00022274,4]
[350526808,1737946249035,-161.06130044,0.00022274,5]
[350526809,1737946249044,-198213.57182931,0.00022298,15]
[350526810,1737946249140,-8865.58307668,0.00022298,15]
[350526811,1737946249154,-69528.52971833,0.00022298,15]
[350526812,1737946249165,-151.0,0.00022298,7]
[350526813,1737946249180,-584.323886,0.00022298,7]
[350526814,1737946249194,-584.323886,0.00022298,7]
[350526815,1737946249205,-151.0,0.00022298,7]
[350526816,1737946249215,-736.236547,0.00022298,7]
[350526817,1737946249224,-155.393731,0.00022298,7]
[350526818,1737946249234,-736.236547,0.00022298,7]
[350526819,1737946249244,-46574.36632898,0.00022299,3]
[350526820,1737946249254,-336.865126,0.00022299,7]
[350526821,1737946249264,-336.865126,0.00022299,7]
[350526822,1737946249275,-169.156719,0.00022299,7]
[350526823,1737946249286,-169.156719,0.00022299,7]
[350526824,1737946249296,-138260.4735799,0.000223,7]
[350526825,1737946249309,-13253.18197418,0.000223,7]
[350526826,1737946249321,-4386.9978675,0.000223,7]
[350526827,1737946249345,-500.0,0.00018746,2]
[350526828,1737946249355,-621.47,0.00019568,2]
[350526829,1737946249365,-63393.94633367,0.000223,7]
[350526830,1737946249376,-145925.7232853,0.000223,7]
[350526831,1737946249385,-3185.97,0.000223,14]
[350526832,1737946249395,-5600.54431189,0.000223,2]
[350526833,1737946249407,-472.77568811,0.000223,2]
[350526834,1737946249506,-151.0,0.000223,9]
[350526835,1737946249517,-270.692819,0.000223,7]
[350526836,1737946249527,-151.0,0.000223,7]
[350526837,1737946249536,-151.0,0.000223,7]
[350526838,1737946249545,-151.0,0.000223,7]
[350526839,1737946249555,-7458.15634357,0.000223,3]
[350526840,1737946249564,-6362.37514932,0.000223,7]
[350526841,1737946249576,-1095.78119425,0.000223,7]
[350526842,1737946249585,-153.200473,0.000223,7]
[350526843,1737946249595,-151.0,0.000223,7]
[350526844,1737946249605,-151.0,0.000223,7]
[350526845,1737946249614,-558.949412,0.000223,7]
[350526846,1737946249623,-151.0,0.000223,7]
[350526847,1737946249632,-558.949412,0.000223,7]
[350526848,1737946249642,-809.159563,0.000223,7]
[350526849,1737946249651,-186.32505863,0.000223,7]
[350526850,1737946249667,-622.83450437,0.000223,7]
[350526851,1737946249679,-151.0,0.000223,7]
[350526852,1737946249689,-151.0,0.000223,7]
[350526853,1737946249698,-1128.602282,0.000223,7]
[350526854,1737946249709,-1128.602282,0.000223,7]
[350526855,1737946249718,-502.633472,0.000223,7]
[350526856,1737946249727,-151.0,0.000223,7]
[350526857,1737946249737,-502.633472,0.000223,7]
[350526858,1737946249748,-151.0,0.000223,7]
[350526859,1737946249757,-151.0,0.000223,7]
[350526860,1737946249767,-151.0,0.000223,7]
[350526861,1737946249776,-151.0,0.000223,7]
[350526862,1737946249785,-151.0,0.000223,7]
[350526863,1737946249794,-151.0,0.000223,7]
[350526864,1737946249804,-151.0,0.000223,7]
[350526865,1737946249813,-747.129425,0.000223,7]
[350526866,1737946249822,-747.129425,0.000223,7]
[350526867,1737946249832,-747.129425,0.000223,7]
[350526868,1737946249841,-747.129425,0.000223,7]
[350526869,1737946249850,-747.129425,0.000223,7]
[350526870,1737946249859,-747.129425,0.000223,7]
[350526871,1737946249869,-151.0,0.000223,7]
[350526872,1737946249878,-154.273794,0.000223,7]
[350526873,1737946249887,-161.15167,0.000223,7]
[350526874,1737946249897,-151.0,0.000223,7]
[350526875,1737946249906,-171.242712,0.000223,7]
[350526876,1737946249916,-1267.658286,0.000223,7]
[350526877,1737946249927,-1267.658286,0.000223,7]
[350526878,1737946249937,-1267.658286,0.000223,7]
[350526879,1737946249946,-1267.658286,0.000223,7]
[350526880,1737946249956,-1267.658286,0.000223,7]
[350526881,1737946249966,-1267.658286,0.000223,7]
[350526882,1737946249976,-268.894567,0.000223,7]
[350526883,1737946249985,-268.894567,0.000223,7]
[350526884,1737946249994,-268.894567,0.000223,7]
[350526885,1737946250003,-1201.106047,0.000223,7]
[350526886,1737946250013,-268.894567,0.000223,7]
[350526887,1737946250022,-1201.106047,0.000223,7]
[350526888,1737946250032,-268.894567,0.000223,7]
[350526889,1737946250042,-1201.106047,0.000223,7]
[350526890,1737946250051,-268.894567,0.000223,7]
[350526891,1737946250060,-1201.106047,0.000223,7]
[350526892,1737946250069,-1201.106047,0.000223,7]
[350526893,1737946250078,-1201.106047,0.000223,7]
[350526894,1737946250087,-643.185665,0.000223,7]
[350526895,1737946250096,-643.185665,0.000223,7]
[350526896,1737946250105,-643.185665,0.000223,7]
[350526897,1737946250114,-643.185665,0.000223,7]
[350526898,1737946250123,-643.185665,0.000223,7]
[350526899,1737946250132,-643.185665,0.000223,7]
[350526900,1737946250141,-1028.293023,0.000223,7]
[350526901,1737946250150,-151.0,0.000223,7]
[350526902,1737946250159,-1028.293023,0.000223,7]
[350526903,1737946250170,-151.267044,0.000223,7]
[350526904,1737946250182,-1028.293023,0.000223,7]
[350526905,1737946250192,-1028.293023,0.000223,7]
[350526906,1737946250202,-707.24132535,0.000223,7]
[350526907,1737946250250,-321.05169765,0.000223,7]
[350526908,1737946250260,-1028.293023,0.000223,7]
[350526909,1737946250269,-336.865126,0.000223,7]
[350526910,1737946250278,-336.865126,0.000223,7]
[350526911,1737946250287,-336.865126,0.000223,7]
[350526912,1737946250297,-336.865126,0.000223,7]
[350526913,1737946250307,-169.156719,0.000223,7]
[350526914,1737946250317,-169.156719,0.000223,7]
[350526915,1737946250327,-169.156719,0.000223,7]
[350526916,1737946250337,-169.156719,0.000223,7]
[350526917,1737946250346,-666.0,0.000223,3]
[350526918,1737946250356,-897.026712,0.000223,7]
[350526919,1737946250365,-897.026712,0.000223,7]
[350526920,1737946250374,-897.026712,0.000223,7]
[350526921,1737946250384,-897.026712,0.000223,7]
[350526922,1737946250393,-897.026712,0.000223,7]
[350526923,1737946250402,-897.026712,0.000223,7]
[350526924,1737946250411,-601.522044,0.000223,7]
[350526925,1737946250420,-601.522044,0.000223,7]
[350526926,1737946250431,-601.522044,0.000223,7]
[350526927,1737946250440,-601.522044,0.000223,7]
[350526928,1737946250449,-601.522044,0.000223,7]
[350526929,1737946250458,-601.522044,0.000223,7]
[350526930,1737946250467,-151.0,0.000223,7]
[350526931,1737946250476,-151.0,0.000223,7]
[350526932,1737946250485,-151.0,0.000223,7]
[350526933,1737946250494,-151.0,0.000223,7]
[350526934,1737946250504,-151.0,0.000223,7]
[350526935,1737946250516,-151.0,0.000223,7]
[350526936,1737946250529,-151.0,0.000223,7]
[350526937,1737946250542,-151.0,0.000223,7]
[350526938,1737946250555,-584.323886,0.000223,7]
[350526939,1737946250566,-584.323886,0.000223,7]
[350526940,1737946250578,-584.323886,0.000223,7]
[350526941,1737946250591,-584.323886,0.000223,7]
[350526942,1737946250603,-159.553238,0.000223,7]
[350526943,1737946250617,-151.0,0.000223,7]
[350526944,1737946250629,-151.0,0.000223,7]
[350526945,1737946250641,-151.0,0.000223,7]
[350526946,1737946250655,-151.0,0.000223,7]
[350526947,1737946250669,-151.0,0.000223,7]
[350526948,1737946250682,-151.0,0.000223,7]
[350526949,1737946250694,-736.236547,0.000223,7]
[350526950,1737946250708,-736.236547,0.000223,7]
[350526951,1737946250720,-736.236547,0.000223,7]
[350526952,1737946250733,-736.236547,0.000223,7]
[350526953,1737946250749,-160.0,0.000223,3]
[350526954,1737946250761,-160.0,0.000223,7]
[350526955,1737946250772,-2000.0,0.00022301,30]
[350526956,1737946250784,-1000.0,0.00022301,30]
[350526957,1737946250796,-1497.85691961,0.00022306,2]
[350526958,1737946250809,-2000.0,0.00022329,30]
[350526959,1737946250821,-1000.0,0.00022329,30]
[350526960,1737946250835,-2000.0,0.00022356,30]
[350526961,1737946250849,-208.25279113,0.00022371,3]
[350526962,1737946250862,-2000.0,0.00022384,30]
[350526963,1737946250876,-151.0,0.000224,9]
[350526964,1737946250889,-151.0,0.000224,5]
[350526965,1737946250899,-151.0,0.000224,7]
[350526966,1737946250909,-1497.85691961,0.00022406,2]
[350526967,1737946250920,-3320.49432719,0.00022409,2]
[350526968,1737946250935,-612.67564909,0.0002241,2]
[350526969,1737946250949,-378.34,0.0002241,2]
[350526970,1737946250962,-500.0,0.0002241,2]
[350526971,1737946250972,-500.0,0.0002241,2]
[350526972,1737946250984,-3320.49432718,0.0002241,2]
[350526973,1737946250996,-2000.0,0.00022411,30]
[350526974,1737946251008,-1128.602282,0.00022411,7]
[350526975,1737946251020,-502.633472,0.00022411,7]
[350526976,1737946251031,-151.0,0.00022411,7]
[350526977,1737946251042,-151.0,0.00022411,7]
[350526978,1737946251054,-169.156719,0.00022411,7]
[350526979,1737946251065,-169.156719,0.00022411,7]
[350526980,1737946251077,-151.0,0.00022411,7]
[350526981,1737946251088,-584.323886,0.00022411,7]
[350526982,1737946251100,-584.323886,0.00022411,7]
[350526983,1737946251111,-480.38157342,0.00022411,7]
[350526984,1737946251228,-500.0,0.00018198,2]
[350526985,1737946251240,-500.0,0.00018335,2]
[350526986,1737946251251,-234.06679591,0.00018883,2]
[350526987,1737946251348,-509.01919174,0.00018198,2]
[350526988,1737946251358,-265.93320409,0.00018883,2]
[350526989,1737946251367,-212.63474007,0.0001902,2]
[350526990,1737946251377,-621.47,0.00019705,2]
[350526991,1737946251386,-621.47,0.00019842,2]
[350526992,1737946251395,-621.47,0.00019979,2]
[350526993,1737946251405,-151.0,0.0001998,2]
[350526994,1737946251414,-621.47,0.00020116,2]
[350526995,1737946251427,-301.44919053,0.00020253,2]
[350526996,1737946251439,-320.02080947,0.00020253,2]
[350526997,1737946251448,-621.47,0.0002039,2]
[350526998,1737946251457,-621.47,0.00020527,2]
[350526999,1737946251467,-621.47,0.00020664,2]
[350527000,1737946251476,-621.47,0.00020801,2]
[350527001,1737946251486,-621.47,0.00020938,2]
[350527002,1737946251495,-621.47,0.00021075,2]
[350527003,1737946251505,-621.47,0.00021212,2]
[350527004,1737946251515,-621.57328873,0.00021349,2]
[350527005,1737946251524,-112.83558712,0.00021999,7]
[350527006,1737946251536,-38.16441288,0.00021999,7]
[350527007,1737946251546,-151.0,0.00022136,7]
[350527008,1737946251556,-153.815631,0.00022298,7]
[350527009,1737946251565,-255.85497358,0.00022411,7]
[350527010,1737946251575,-736.236547,0.00022411,7]
[350527011,1737946251584,-3320.49432718,0.00022412,2]
[350527012,1737946251593,-1294.13410836,0.00022413,2]
[350527013,1737946251944,-500.0,0.00018016,2]
[350527014,1737946251954,-500.0,0.00018198,2]
[350527015,1737946251964,-2838.61,0.00018198,2]
[350527016,1737946251973,-614.72887394,0.00018198,2]
[350527017,1737946251983,-500.0,0.00018198,2]
[350527018,1737946251992,-500.0,0.00018198,2]
[350527019,1737946252002,-500.0,0.00018198,2]
[350527020,1737946252011,-453.78598865,0.00018198,2]
[350527021,1737946252020,-500.0,0.00018198,2]
[350527022,1737946252029,-500.0,0.00018198,2]
[350527023,1737946252038,-127.63000121,0.00018198,2]
[350527024,1737946252050,-372.36999879,0.00018198,2]
[350527025,1737946252060,-237.16187037,0.00018198,2]
[350527026,1737946252069,-500.0,0.00018198,2]
[350527027,1737946252079,-322.92746997,0.00018198,2]
[350527028,1737946252088,-564.67086863,0.00018198,2]
[350527029,1737946252097,-500.0,0.00018198,2]
[350527030,1737946252106,-500.0,0.00018198,2]
[350527031,1737946252116,-500.0,0.00018198,2]
[350527032,1737946252126,-172.77372168,0.00018334,2]
[350527033,1737946252135,-2026.36021882,0.00022413,2]
[350527034,1737946252145,-151.0,0.00022414,7]
[350527035,1737946252156,-151.0,0.00022414,7]
[350527036,1737946252165,-558.949412,0.00022414,7]
[350527037,1737946252175,-275.581538,0.00022414,7]
[350527038,1737946252184,-558.949412,0.00022414,7]
[350527039,1737946252194,-809.159563,0.00022414,7]
[350527040,1737946252203,-809.159563,0.00022414,7]
[350527041,1737946252212,-151.0,0.00022414,7]
[350527042,1737946252221,-151.0,0.00022414,7]
[350527043,1737946252231,-151.0,0.00022414,7]
[350527044,1737946252240,-151.0,0.00022414,7]
[350527045,1737946252249,-151.0,0.00022414,7]
[350527046,1737946252258,-151.0,0.00022414,7]
[350527047,1737946252268,-1201.106047,0.00022414,7]
[350527048,1737946252277,-1201.106047,0.00022414,7]
[350527049,1737946252287,-643.185665,0.00022414,7]
[350527050,1737946252296,-643.185665,0.00022414,7]
[350527051,1737946252305,-1028.293023,0.00022414,7]
[350527052,1737946252315,-1028.293023,0.00022414,7]
[350527053,1737946252325,-897.026712,0.00022414,7]
[350527054,1737946252334,-897.026712,0.00022414,7]
[350527055,1737946252344,-601.522044,0.00022414,7]
[350527056,1737946252353,-601.522044,0.00022414,7]
[350527057,1737946252363,-151.0,0.00022414,7]
[350527058,1737946252372,-151.0,0.00022414,7]
[350527059,1737946252382,-151.0,0.00022414,7]
[350527060,1737946252391,-151.0,0.00022414,7]
[350527061,1737946252400,-3320.49432718,0.00022415,2]
[350527062,1737946252410,-3320.49432718,0.00022416,2]
[350527063,1737946252419,-3320.49432718,0.00022418,2]
[350527064,1737946252430,-3320.49432718,0.00022419,2]
[350527065,1737946252439,-3320.49432718,0.00022421,2]
[350527066,1737946252447,-3320.49432718,0.00022422,2]
[350527067,1737946252456,-176.92702893,0.00022422,2]
[350527068,1737946252466,-2000.0,0.00022438,30]
[350527069,1737946252475,-1267.658286,0.00022438,7]
[350527070,1737946252484,-1267.658286,0.00022438,7]
[350527071,1737946252494,-336.865126,0.00022438,7]
[350527072,1737946252503,-336.865126,0.00022438,7]
[350527073,1737946252512,-2000.0,0.00022466,30]
[350527074,1737946252521,-747.129425,0.00022466,7]
[350527075,1737946252531,-747.129425,0.00022466,7]
[350527076,1737946252540,-268.894567,0.00022466,7]
[350527077,1737946252549,-268.894567,0.00022466,7]
[350527078,1737946252558,-2994.19566726,0.000225,2]
[350527079,1737946252567,-2000.0,0.000225,7]
[350527080,1737946252576,-619.83926852,0.000225,2]
[350527081,1737946252586,-5320.11484222,0.000225,30]
[350527082,1737946252598,-4582.12846802,0.000225,30]
[350527083,1737946252609,-151.0,0.000225,10]
[350527084,1737946252618,-151.0,0.000225,7]
[350527085,1737946252627,-151.0,0.000225,7]
[350527086,1737946252636,-151.0,0.000225,7]
[350527087,1737946252645,-291.189055,0.000225,7]
[350527088,1737946252655,-151.0,0.000225,7]
[350527089,1737946252668,-151.0,0.000225,7]
[350527090,1737946252678,-2626.942952,0.000225,7]
[350527091,1737946252687,-151.0,0.000225,7]
[350527092,1737946252696,-2626.942952,0.000225,7]
[350527093,1737946252706,-151.0,0.000225,7]
[350527094,1737946252715,-151.0,0.000225,7]
[350527095,1737946252724,-151.0,0.000225,7]
[350527096,1737946252733,-151.0,0.000225,7]
[350527097,1737946252744,-151.0,0.000225,7]
[350527098,1737946252754,-161.36363135,0.00022502,2]
[350527099,1737946252763,-151.0,0.00022503,7]
[350527100,1737946252772,-151.0,0.00022503,7]
[350527101,1737946252782,-151.0,0.00022503,7]
[350527102,1737946252791,-151.0,0.00022503,7]
[350527103,1737946252800,-151.0,0.00022503,7]
[350527104,1737946252810,-151.0,0.00022503,7]
[350527105,1737946252819,-151.0,0.00022503,7]
[350527106,1737946252828,-163.118392,0.00022503,7]
[350527107,1737946252837,-151.0,0.00022503,7]
[350527108,1737946252847,-247.08743,0.00022503,7]
[350527109,1737946252855,-151.0,0.00022503,7]
[350527110,1737946252865,-151.0,0.00022503,7]